Workbook

Sheet Production (hidden)
A1: Annual Mining Targets
A2: Financial Year | B2: Years | C2: 2025/2026 | D2: 2026/2027 | E2: 2027/2028 | F2: 2028/2029 | J2: 2029/20230
A3: NorthPit Ore | B3: mt | C3: 10.3 | D3: 10.7 | E3: 10.7 | F3: 10.7 | J3: 10.7 | K3: =SUM(C3:J3) -> 53.1
A4: NorthPit Waste | B4: mt | C4: 3.9 | D4: 3.3 | E4: 3.3 | F4: 3.3 | J4: 3.3 | K4: =SUM(C4:J4) -> 17.1
A5: NorthPit SR | C5: =C4/C3 -> 0.38 | D5: =D4/D3 -> 0.31 | E5: =E4/E3 -> 0.31 | F5: 0.31 | J5: 0.31
A6: Total Rock | B6: mt | C6: =C3+C4 -> 14.2 | D6: =D3+D4 -> 14.0 | E6: 14.0 | F6: 14.0 | J6: 14.0 | K6: =SUM(C6:J6) -> 70.2
A9: Financial Year | B9: 2025/2026 | C9: 2026/2027 | D9: 2027/2028 | E9: 2028/2029 | F9: 2029/20230 | G9: 2030/2031 | H9: 2027/2029 | J9: TOTAL
A10: NorthPit Ore | B10: 5.0 | C10: 6.0 | D10: 6.0 | E10: 6.0 | F10: 6.0 | G10: 6.0 | J10: =SUM(B10:G10) -> 35.0
A11: NorthPit Waste | B11: 2.3 | C11: 2.76 | D11: 2.76 | E11: 2.76 | F11: 2.76 | G11: 2.76 | J11: =SUM(B11:G11) -> 16.1
A12: Total Rock | B12: 7.3 | C12: 8.8 | D12: 8.8 | E12: 8.8 | F12: 8.8 | G12: 8.8 | J12: 51.1
B13: =B11/B10 -> 0.46 | C13: =C11/C10 -> 0.46 | D13: 0.46 | E13: 0.46 | F13: 0.46 | G13: 0.46
A19: Expit Ore | B19: ='[1]Sur-Oper Report'!$DC$536+'[1]Sur-Oper Report'!$DC$543 -> 2,615,286 | C19: =B19*2 -> 5,230,572
A20: waste | B20: ='[1]Sur-Oper Report'!$DC$544 -> 1,152,939 | C20: =B20*2 -> 2,305,878.00
A21: total | B21: =B19+B20 -> 3,768,225 | C21: =B21*2 -> 7,536,450.00
A22: SR | B22: =B20/B19 -> 0.44
A24: Financial Year | B24: 2025/2026 | C24: 2026/2027 | D24: 2027/2028 | E24: 2028/2029 | F24: 2029/20230 | J24: TOTAL
A25: NorthPit Ore | B25: 5 | C25: 6 | D25: 6 | E25: 6 | F25: 6 | J25: =SUM(B25:F25) -> 29
A26: NorthPit Waste | B26: =0.46*B25 -> 2.3 | C26: =0.46*C25 -> 2.76 | D26: 2.76 | E26: 2.76 | F26: 2.76 | J26: =SUM(B26:F26) -> 13.34
A27: Total Rock | B27: =B25+B26 -> 7.3 | C27: =C25+C26 -> 8.8 | D27: 8.8 | E27: 8.8 | F27: 8.8 | J27: =SUM(B27:F27) -> 42.34
B28: =B26/B25 -> 0.46 | C28: =C26/C25 -> 0.46 | D28: 0.46 | E28: 0.46 | F28: 0.46
A30: Financial Year | B30: 2025/2026 | C30: 2026/2027 | D30: 2027/2028 | E30: 2028/2029 | F30: 2029/20230 | G30: 2030/2031 | J30: TOTAL
A31: NorthPit Ore | B31: 5.0 | C31: 6.0 | D31: 6.0 | E31: 6.0 | F31: 6.0 | G31: 6.0 | J31: =SUM(C31:G31) -> 30.0
A32: NorthPit Waste | B32: 2.3 | C32: 2.76 | D32: 2.76 | E32: 2.76 | F32: 2.76 | G32: 2.76 | J32: =SUM(C32:G32) -> 13.8
A33: Total Rock | B33: 7.3 | C33: 8.8 | D33: 8.8 | E33: 8.8 | F33: 8.8 | G33: 8.8 | J33: =SUM(C33:G33) -> 43.8
B34: =B32/B31 -> 0.46 | C34: =C32/C31 -> 0.46 | D34: 0.46 | E34: 0.46 | F34: 0.46 | G34: 0.46
D38: Total Distane
B39: Bench | C39: 9 | D39: =332+1423+536+185 -> 2476 | J39: =360+372+909+708+177+400 -> 2926
C40: 8 | D40: =376+1272+536+185 -> 2369
C41: 7 | D41: =463+1122+536+185 -> 2306
C42: 6 | D42: =565+971+536+185 -> 2257 | F42: =-94+71 -> -23
C43: 5 | D43: =682+815+536+185 -> 2218
C44: 4 | D44: =732+569+536+185 -> 2022
C45: 3 | D45: =650+374+536+185 -> 1745
C46: 2
C47: 1

Sheet schedule (hidden)
A1: End of FY2024/2025
A33: End of FY2025/2026
A65: End of FY2026/2027
A97: End of FY2027/2028
A129: End of FY2028/2029
A161: End of FY2029/2030
A193: End of FY2030/2031

Sheet Haul routes (hidden)
A1: Table 3-1 Typical Load and Haul Distances - Ore | J1: Table 3-2 Typical Load and Haul Distances – Waste | Q1: Table 3-3: Indicative Rehandle Haul Distances
A3: Bench no. | B3: Bench elevation | C3: Haul segment | D3: Distance (m) | E3: Gradient (%) | F3: Total distance (m) | J3: Bench no. | Q3: Stockpile | R3: Crusher | S3: Distance (m)
C4: Inpit flat | D4: 258 | E4: 0 | K4: Bench elevation | L4: Haul segment | M4: Distance (m) | N4: Gradient (%) | O4: Total distance (m) | R4: East Crusher
C5: Inpit ramp | D5: 619 | E5: 8 | L5: Inpit flat | M5: 258 | N5: 0 | Q5: East Passby | S5: 200 m to 500 m
C6: Ex-pit 4-way stop 1 | D6: 389 | E6: 0 | L6: Inpit ramp | M6: 619 | N6: 8 | Q6: East Passby | R6: North Crusher | S6: 699 m
A7: 4 | B7: 330 | C7: 4-way stop 1 - East crusher | D7: 412 | E7: 3.79 | F7: 1.678 | L7: Ex-pit 4-way stop 1 | M7: 389 | N7: 0 | Q7: North Passby | R7: East Crusher | S7: 794 m
C8: Inpit flat | D8: 253 | E8: 0 | L8: 4-way stop 1 - Waste dump | M8: 1654 | N8: 0 | Q8: North Passby | R8: North Crusher | S8: 150 m
C9: Inpit ramp | D9: 768 | E9: 8 | J9: 9 | K9: 372 | L9: Waste dump ramp lift 1 | M9: 140 | N9: 8 | O9: 3.06 | Q9: New North Stockpile | R9: East Crusher | S9: 1 110 m
C10: Ex-pit 4-way stop 1 | D10: 389 | E10: 0 | L10: Inpit flat | M10: 253 | N10: 0 | Q10: New North Stockpile | R10: North Crusher | S10: 475 m
A11: 5 | B11: 315 | C11: 4-way stop 1 - East crusher | D11: 412 | E11: 3.79 | F11: 1.822 | J11: 10 | K11: 360 | L11: Inpit ramp | M11: 768 | N11: 8 | O11: 3.204
C12: Inpit flat | D12: 362 | E12: 0
C13: Inpit ramp | D13: 912 | E13: 8
C14: Ex-pit 4-way stop 1 | D14: 389 | E14: 0 | L14: Ex-pit 4-way stop 1 | M14: 389 | N14: 0
A15: 6 | B15: 303 | C15: 4-way stop 1 - East crusher | D15: 412 | E15: 3.79 | F15: 2.075 | L15: 4-way stop 1 - Waste dump | M15: 1654 | N15: 0
C16: Inpit flat | D16: 165 | E16: 0 | L16: Waste dump ramp lift 1 | M16: 140 | N16: 8
C17: Inpit ramp | D17: 1085 | E17: 8 | L17: Inpit flat | M17: 362 | N17: 0
C18: Ex-pit 4-way stop 1 | D18: 389 | E18: 0
A19: 12 | B19: 336 | C19: 4-way stop 1 - East crusher | D19: 412 | E19: 3.79 | F19: 2.051 | L19: Inpit ramp | M19: 912 | N19: 8
C20: Inpit flat | D20: 264 | E20: 0 | L20: Ex-pit 4-way stop 1 | M20: 389 | N20: 0 | Q20: =-938+788 -> -150
C21: Inpit ramp | D21: 2439 | E21: 8 | L21: 4-way stop 1 - Waste dump | M21: 1654 | N21: 0 | Q21: =188+558 -> 746
A22: 19 | B22: 243 | C22: Ex-pit 4-way stop 1 | D22: 389 | E22: 0 | F22: 3.504 | L22: Waste dump ramp lift 1 | M22: 140 | N22: 8
L23: Waste dump flat | M23: 600 | N23: 0
J24: 11 | K24: 348 | L24: Waste dump ramp lift 2 | M24: 140 | N24: 8 | O24: 4.197
C25: 4-way stop 1 - East crusher | D25: 412 | E25: 3.79 | L25: Inpit flat | M25: 165 | N25: 0
C26: Inpit flat | D26: 260 | E26: 0
C27: Inpit ramp | D27: 2604 | E27: 8 | L27: Inpit ramp | M27: 1085 | N27: 8
C28: Ex-pit 4-way stop 1 | D28: 389 | E28: 0 | L28: Ex-pit 4-way stop 1 | M28: 389 | N28: 0
A29: 20 | B29: 231 | C29: 4-way stop 1 - East crusher | D29: 412 | E29: 3.79 | F29: 3.665 | L29: 4-way stop 1 - Waste dump | M29: 1654 | N29: 0
C30: Inpit flat | D30: 265 | E30: 0 | L30: Waste dump ramp lift 1 | M30: 140 | N30: 8
C31: Inpit ramp | D31: 2741 | E31: 8 | L31: Waste dump flat | M31: 600 | N31: 0
C32: Ex-pit 4-way stop 1 | D32: 389 | E32: 0 | L32: Waste dump ramp lift 2 | M32: 140 | N32: 8
A33: 21 | B33: 219 | C33: 4-way stop 1 - East crusher | D33: 412 | E33: 3.79 | F33: 3.807 | L33: Waste dump flat | M33: 400 | N33: 0
J34: 12 | K34: 336 | L34: Waste dump ramp lift 3 | M34: 140 | N34: 8 | O34: 4.713
L35: Inpit flat | M35: 264 | N35: 0
L36: Inpit ramp | M36: 2439 | N36: 8
L37: Ex-pit 4-way stop 1 | M37: 389 | N37: 0
L38: 4-way stop 1 - Waste dump | M38: 765 | N38: 0
J39: 19 | K39: 243 | L39: Waste dump ramp lift 1 | M39: 140 | N39: 8 | O39: 3.997
J40: 20 | K40: 231 | L40: Inpit flat | M40: 260 | N40: 0 | O40: 4.898
L43: Inpit ramp | M43: 2604 | N43: 8
L44: Ex-pit 4-way stop 1 | M44: 389 | N44: 0
L45: 4-way stop 1 - Waste dump | M45: 765 | N45: 0
L46: Waste dump ramp lift 1 | M46: 140 | N46: 8
L47: Waste dump flat | M47: 600 | N47: 0
L48: Waste dump ramp lift 2 | M48: 140 | N48: 0
L49: Inpit flat | M49: 265 | N49: 0
L51: Inpit ramp | M51: 2741 | N51: 8
L52: Ex-pit 4-way stop 1 | M52: 389 | N52: 0
L53: 4-way stop 1 - Waste dump | M53: 765 | N53: 0
L54: Waste dump ramp lift 1 | M54: 140 | N54: 8
L55: Waste dump flat | M55: 600 | N55: 0
L56: Waste dump ramp lift 2 | M56: 140 | N56: 8
L57: Waste dump flat | M57: 400 | N57: 0
J58: 21 | K58: 219 | L58: Waste dump ramp lift 3 | M58: 140 | N58: 8 | O58: 5.58

Sheet scoringroutes (hidden)
A1: Bench no | B1: Bench Elevation | C1: Haul Segment | D1: Distance | E1: Gradient (8%) | F1: Total distance
A2: 3 | B2: 345 | C2: Inpit flat | D2: 650 | F2: =D2+D3+D4+D5+D6+D7 -> 3218
C3: Inpit ramp | D3: 374 | E3: 8
C4: Pit exit – Waste dump entrance (Flat) | D4: 909
C5: Waste dump entrance (Flat)- Waste dump phase 1 ramp | D5: 708 | E5: 8
C6: Waste dump phase 1 ramp - Waste dump phase 2 ramp | D6: 177 | E6: 8
C7: Waste dump phase 2 ramp – lift 3 flats | D7: 400 | E7: 8
A8: 4 | B8: 330 | C8: Inpit flat | D8: 732 | F8: =D8+D9+D10+D11+D12+D13 -> 3495
C9: Inpit ramp | D9: 569 | E9: 8
C10: Pit exit – Waste dump entrance (Flat) | D10: 909
C11: Waste dump entrance (Flat)- Waste dump phase 1 ramp | D11: 708 | E11: 8
C12: Waste dump phase 1 ramp - Waste dump phase 2 ramp | D12: 177 | E12: 8
C13: Waste dump phase 2 ramp – lift 3 flats | D13: 400 | E13: 8
A14: 5 | B14: 315 | C14: Inpit flat | D14: 682 | F14: =D14+D15+D16+D17+D18+D19 -> 3691
C15: Inpit ramp | D15: 815 | E15: 8
C16: Pit exit – Waste dump entrance (Flat) | D16: 909
C17: Waste dump entrance (Flat)- Waste dump phase 1 ramp | D17: 708 | E17: 8
C18: Waste dump phase 1 ramp - Waste dump phase 2 ramp | D18: 177 | E18: 8
C19: Waste dump phase 2 ramp – lift 3 flats | D19: 400 | E19: 8
A20: 6 | B20: 303 | C20: Inpit flat | D20: 565 | F20: =D20+D21+D22+D23+D24+D25 -> 3730
C21: Inpit ramp | D21: 971 | E21: 8
C22: Pit exit – Waste dump entrance (Flat) | D22: 909
C23: Waste dump entrance (Flat)- Waste dump phase 1 ramp | D23: 708 | E23: 8
C24: Waste dump phase 1 ramp - Waste dump phase 2 ramp | D24: 177 | E24: 8
C25: Waste dump phase 2 ramp – lift 3 flats | D25: 400 | E25: 8
A26: 7 | B26: 291 | C26: Inpit flat | D26: 463 | F26: =D26+D27+D28+D29+D30+D31 -> 3898
C27: Inpit ramp | D27: 1122 | E27: 8
C28: Pit exit – Waste dump entrance (Flat) | D28: 909
C29: Waste dump entrance (Flat)- Waste dump phase 1 ramp | D29: 708 | E29: 8
C30: Waste dump phase 1 ramp - Waste dump phase 2 ramp 2 | D30: 371 | E30: 8
C31: Waste dump phase 2 ramp – lift 4 flats | D31: 325 | E31: 8
A32: 8 | B32: 279 | C32: Inpit flat | D32: 376 | F32: =D32+D33+D34+D35+D36+D37 -> 3961
C33: Inpit ramp | D33: 1272 | E33: 8
C34: Pit exit – Waste dump entrance (Flat) | D34: 909
C35: Waste dump entrance (Flat)- Waste dump phase 1 ramp | D35: 708 | E35: 8
C36: Waste dump phase 1 ramp - Waste dump phase 2 ramp 2 | D36: 371 | E36: 8
C37: Waste dump phase 2 ramp – lift 4 flats | D37: 325 | E37: 8
A38: 9 | B38: 267 | C38: Inpit flat | D38: 332 | F38: =D38+D39+D40+D41+D42+D43 -> 4068
C39: Inpit ramp | D39: 1423 | E39: 8
C40: Pit exit – Waste dump entrance (Flat) | D40: 909
C41: Waste dump entrance (Flat)- Waste dump phase 1 ramp | D41: 708 | E41: 8
C42: Waste dump phase 1 ramp - Waste dump phase 2 ramp 2 | D42: 371 | E42: 8
C43: Waste dump phase 2 ramp – lift 4 flats | D43: 325 | E43: 8
A46: Bench no. | B46: Bench | C46: Haul segment | D46: Distance (m) | E46: Gradient (%) | F46: Total distance (m)
B47: elevation
C48: Inpit flat | D48: 650 | E48: 0
C49: Inpit ramp | D49: 374 | E49: 8
C50: Pit exit - Crusher 4-way stop (Flat) | D50: 536 | E50: 0
A51: 3 | B51: 345 | C51: Crusher 4-way stop – South primary crusher (Flat) | D51: 185 | E51: 0 | F51: 1.745
C52: Inpit flat | D52: 732 | E52: 0
C54: Inpit ramp | D54: 569 | E54: 8
A55: 4 | B55: 330 | C55: Pit exit - Crusher 4-way stop (Flat) | D55: 536 | E55: 0 | F55: 2.022
C56: Crusher 4-way stop – South primary crusher (Flat) | D56: 185 | E56: 3.79
C57: Inpit flat | D57: 682 | E57: 0
C58: Inpit ramp | D58: 815 | E58: 8
C59: Pit exit - Crusher 4-way stop (Flat) | D59: 536 | E59: 0
A60: 5 | B60: 315 | C60: Crusher 4-way stop – South primary crusher (Flat) | D60: 185 | E60: 0 | F60: 2.218
C61: Inpit flat | D61: 565 | E61: 0
C62: Inpit ramp | D62: 971 | E62: 8
C63: Pit exit - Crusher 4-way stop (Flat) | D63: 536 | E63: 0
A64: 6 | B64: 303 | C64: Crusher 4-way stop – South primary crusher (Flat) | D64: 185 | E64: 0 | F64: 2.257
A65: 7 | B65: 291 | C65: Inpit flat | D65: 463 | E65: 0
C66: Inpit ramp | D66: 1122 | E66: 8
C67: Pit exit - Crusher 4-way stop (Flat) | D67: 536 | E67: 0 | F67: 2.306
C68: Crusher 4-way stop – South primary crusher (Flat) | D68: 185 | E68: 0
C69: Inpit flat | D69: 376 | E69: 0
C70: Inpit ramp | D70: 1272 | E70: 8
C71: Pit exit - Crusher 4-way stop (Flat) | D71: 536 | E71: 0
A72: 8 | B72: 279 | C72: Crusher 4-way stop – South primary crusher (Flat) | D72: 185 | E72: 0 | F72: 2.369
C73: Inpit flat | D73: 332 | E73: 0
C75: Inpit ramp | D75: 1423 | E75: 8
A76: 9 | B76: 267 | C76: Pit exit - Crusher 4-way stop (Flat) | D76: 536 | E76: 0 | F76: 2.476
C77: Crusher 4-way stop – South primary crusher (Flat) | D77: 185 | E77: 0

Sheet Princing Schedule (hidden)
A1: LOAD AND HAUL CONTRACT SHECDULE OF RATES ( 5-Years)
A2: Item | B2: Unit of Measure | C2: Quantities (5 Years | D2: Unit Rand/Tonnes | E2: Value
A3: Load & Haul Ore
A4: Transport of Ore to Crusher - Bench 3 (1 745m) | B4: R/t | C4: 1,347,520 | E4: =C4*D4 -> 0
A5: Transport of Ore to Crusher - Bench 4 (2 202m) | B5: R/t | C5: 4,339,616
A6: Transport of Ore to Crusher - Bench 5 (2 218m) | B6: R/t | C6: 7,881,095
A7: Transport of Ore to Crusher - Bench 6 (2 257m) | B7: R/t | C7: 12,141,003
A8: Transport of Ore to Crusher - Bench 7 (2 306m) | B8: R/t | C8: 17,417,567
A9: Transport of Ore to Crusher - Bench 8 (2 369m) | B9: R/t | C9: 24,141,081
A10: Transport of Ore to Crusher - Bench 9 (2 476m) | B10: R/t | C10: 25,921,423
A11: Transport of Ore from Stockpile to Crusher @15% of Ore Tonnes | B11: R/t
A13: Total Load & Haul Ore
A15: Load & Haul Waste
A16: Transport from Pit to Dump - Bench 3 (3 218m) | B16: R/t | C16: 501,107
A17: Transport from Pit to Dump - Bench 4 (3 495m) | B17: R/t | C17: 783,866
A18: Transport from Pit to Dump - Bench 5 (3 691m) | B18: R/t | C18: 1,032,224
A19: Transport from Pit to Dump - Bench 6 (3 730m) | B19: R/t | C19: 1,183,362
A20: Transport from Pit to Dump - Bench 7 (3 898m) | B20: R/t | C20: 1,436,383
A21: Transport from Pit to Dump - Bench 8 (3 961m) | B21: R/t | C21: 1,948,133
A22: Transport from Pit to Dump - Bench 9 (4 068m) | B22: R/t | C22: 2,121,032
A24: Total Load & Haul Waste
A26: Total Load & Haul Ore% Waste exc Rehandle
A29: Mechanical Rockbreaking | B29: Rate Only
A31: Site Establishment
A32: Fixed Monthly P & G | B32: Monthly

Sheet Princing Schedule (2) (hidden)
A1: LOAD AND HAUL CONTRACT SCHEDULE OF RATES ( 5-Years)
A2: Item | B2: Unit of Measure | C2: Estimated. Quantities (5 Years | D2: Unit Rand/Tonnes | E2: Value
A3: Load & Haul Ore
A4: Transport of Ore to Crusher - Bench 3 (1 745m) | B4: R/t | C4: 890,369
A5: Transport of Ore to Crusher - Bench 4 (2 202m) | B5: R/t | C5: 4,083,588
A6: Transport of Ore to Crusher - Bench 5 (2 218m) | B6: R/t | C6: 7,619,179
A7: Transport of Ore to Crusher - Bench 6 (2 257m) | B7: R/t | C7: 12,080,779
A8: Transport of Ore to Crusher - Bench 7 (2 306m) | B8: R/t | C8: 15,029,069
A9: Transport of Ore to Crusher - Bench 8 (2 369m) | B9: R/t | C9: 13,676,611
A10: Transport of Ore to Crusher - Bench 9 (2 476m) | B10: R/t | C10: 406,284
A11: Transport of Ore from Stockpile to Crusher @15% of Ore Tonnes | B11: R/t | C11: 8,067,882
A13: Total Load & Haul Ore | C13: =SUM(C4:C11) -> 61,853,761
A15: Load & Haul Waste
A16: Transport from Pit to Dump - Bench 3 (3 218m) | B16: R/t | C16: 1,170,633
A17: Transport from Pit to Dump - Bench 4 (3 495m) | B17: R/t | C17: 2,681,228
A18: Transport from Pit to Dump - Bench 5 (3 691m) | B18: R/t | C18: 2,994,610
A19: Transport from Pit to Dump - Bench 6 (3 730m) | B19: R/t | C19: 3,183,362
A20: Transport from Pit to Dump - Bench 7 (3 898m) | B20: R/t | C20: 2,077,228
A21: Transport from Pit to Dump - Bench 8 (3 961m) | B21: R/t | C21: 2,692,730
A22: Transport from Pit to Dump - Bench 9 (4 068m) | B22: R/t | C22: 1,133,456
A24: Total Load & Haul Waste | C24: =SUM(C16:C22) -> 15,933,247
A26: Total Load & Haul Ore% Waste exc Rehandle | C26: =53785879+C24 -> 69,719,126
A29: Mechanical Rockbreaking | B29: Rate Only
A31: Site Establishment
A32: Fixed Monthly P & G | B32: Monthly
A33: The Establishment and Transportation of Vendor’s Plant & Equipment | B33: Once - Off
A34: Site De-Establishment
A35: Demolition of Vendor’s Plant & Equipment | B35: Once - Off
A36: Removal of Vendor’s Plant & Equipment off site | B36: Once - Off
A39: Total Load & Haul Ore and Waste (Incl. Establishment Costs and Rockbreaker Costs | E39: R0
B41: Mining Cost (Excl. Diesel) R/t | E41: R0

Sheet Princing Schedule A
A1: LOAD AND HAUL CONTRACT SCHEDULE OF RATES ( 5-Years)
A2: Item | B2: Unit of Measure | C2: Estimated Quantities (5 Years | D2: Unit Rand/Tonnes | E2: TOTAL (ZAR)
A3: Load & Haul Ore
A4: Transport of Ore to Crusher - Bench 12 (2 589m) | B4: R/ton | C4: 978,368 | D4: R | E4: R
A5: Transport of Ore to Crusher - Bench 13 (2 617 m) | B5: R/ton | C5: 2,138,155 | D5: R | E5: R
A6: Transport of Ore to Crusher - Bench 14 (2 908 m) | B6: R/ton | C6: 4,407,439 | D6: R | E6: R
A7: Transport of Ore to Crusher - Bench 15 (2 989m) | B7: R/ton | C7: 6,943,777 | D7: R | E7: R
A8: Transport of Ore to Crusher - Bench 16 (3 105) | B8: R/ton | C8: 5,256,260 | D8: R | E8: R
A9: Transport of Ore to Crusher - Bench 17 (3 292m) | B9: R/ton | C9: 889,264 | D9: R | E9: R
A10: Transport of Ore to Crusher - Bench 18 (3 476m) | B10: R/ton | C10: 1,006,398 | D10: R | E10: R
A11: Transport of Ore to Crusher - Bench 19 (3 661m) | B11: R/ton | C11: 3,850,658 | D11: R | E11: R
A12: Transport of Ore to Crusher - Bench 20 (3 875m) | B12: R/ton | C12: 623,000 | D12: R | E12: R
A13: Transport of Rehandle Ore to Crusher @ 15% of Ore Tons | B13: R/ton | C13: =SUM(C4:C12)*15% -> 3,913,998 | D13: R | E13: R
A15: (A) Total Load & Haul Ore | C15: =SUM(C4:C13) -> 30,007,318 | E15: R
A17: Load & Haul Waste
A18: Transport from Pit to Dump - Bench 12 4 338m) | B18: R/ton | C18: 1,964,499 | D18: R | E18: R
A19: Transport from Pit to Dump - Bench 13 (3 694 m) | B19: R/ton | C19: 2,481,020 | D19: R | E19: R
A20: Transport from Pit to Dump - Bench 14 (4 061 m) | B20: R/ton | C20: 2,032,382 | D20: R | E20: R
A21: Transport from Pit to Dump - Bench 15 (4 412m) | B21: R/ton | C21: 1,968,309 | D21: R | E21: R
A22: Transport from Pit to Dump - Bench 16 (4 261m) | B22: R/ton | C22: 1,878,336 | D22: R | E22: R
A23: Transport from Pit to Dump - Bench 17 (4 364m) | B23: R/ton | C23: 500,000 | D23: R | E23: R
A24: Transport from Pit to Dump - Bench 18 (4 741m) | B24: R/ton | C24: 319,831 | D24: R | E24: R
A25: Transport from Pit to Dump - Bench 19 (4 928m) | B25: R/ton | C25: 489,230 | D25: R | E25: R
A26: Transport from Pit to Dump - Bench 20 (5 128m) | B26: R/ton | C26: 41,067 | D26: R | E26: R
A28: (B) Total Load & Haul Waste | C28: =SUM(C18:C26) -> 11,674,673 | E28: R
A30: Total Load & Haul Ore% Waste excl. Rehandle Ore to Crushers | C30: =26093320+C28 -> 37,767,993 | E30: R
A32: Site Establishment**
A33: Fixed Monthly P & G | B33: Monthly | C33: 60 | D33: R | E33: R
A34: The Establishment and Transportation of Vendor’s Plant & Equipment | B34: Once - Off | C34: 1 | D34: R | E34: R
A35: Site De-Establishment**
A36: Demolition of Vendor’s Plant & Equipment | B36: Once - Off | C36: 1 | D36: R | E36: R
A37: Removal of Vendor’s Plant & Equipment off site | B37: Once - Off | C37: 1 | D37: R | E37: R
A40: Total Load & Haul Ore and Waste (Incl. Establishment Costs ) Unescalated | E40: R
B42: Mining Cost (Excl. Diesel) R/t | D42: Rand / Ton | E42: R

Sheet Pricing Schedule B
A1: Item No. | B1: Item | C1: Short Description | D1: Quantity | E1: Unit Cost | F1: Total (ZAR)
A2: 1 | B2: Site Establishment
A3: 1.1 | B3: Mobilization - Loaders | D3: 3 | E3: R | F3: R
A4: 1.2 | B4: Mobilization - RDTs | D4: 11 | E4: R | F4: R
A5: 1.3 | B5: Mobilization - Dozers | D5: 2 | E5: R | F5: R
A6: 1.5 | B6: Mobilization - Graders | D6: 2 | E6: R | F6: R
A7: 1.6 | B7: Mobilization - Waterbowser | D7: 2 | E7: R | F7: R
A8: 1.7 | B8: Mobilization - Dieselbowser | D8: 1 | E8: R | F8: R
A9: 1.8 | B9: Site Mobilization | D9: Sum | E9: R | F9: R
A10: 1.9 | B10: Onboarding fees | D10: Sum | E10: R | F10: R
A11: 1.10 | B11: Temporary Workshop | D11: Sum | E11: R | F11: R
A12: 1.11 | B12: Workshop Tools | D12: Sum | E12: R | F12: R
A13: 1.12 | B13: Workshop Containers | D13: Sum | E13: R | F13: R
B14: Subtotal Site Establishment
A16: 2 | B16: De-Establishment
A17: 2.1 | B17: De-Establishment - Loaders | D17: 3 | E17: R | F17: R
A18: 2.2 | B18: De-Establishment - RDTs | D18: 11 | E18: R | F18: R
A19: 2.3 | B19: De-Establishment - Dozers | D19: 2 | E19: R | F19: R
A20: 2.4 | B20: De-Establishment - Graders | D20: 2 | E20: R | F20: R
A21: 2.5 | B21: De-Establishment - Waterbowser | D21: 2 | E21: R | F21: R
A22: 2.6 | B22: De-Establishment - Dieselbowser | D22: 1 | E22: R | F22: R
A23: 2.7 | B23: De-Establishment - Site | D23: Sum | E23: R | F23: R
B25: Subtotal Site De-Establishment
A27: 3 | B27: Monthly Time Related Costs
A28: 3.1 | B28: Monthly P+G Per Month | D28: 60 | E28: R | F28: R
A29: 3.2 | B29: Fire Suppession System | D29: 60 | E29: R | F29: R
A30: 3.3 | B30: CAS SLA | D30: 60 | E30: R | F30: R
B31: Subtotal Monthly Time Related Costs
A33: 4 | B33: MINING ACTIVITIES | C33: Estimated contract hours (A) | D33: Number of machines (B) | E33: Rate per hour (C) | F33: Total Rental price unescalated (A x B x C )
A34: 4.1 | B34: Loaders | C34: =360*60 -> 21,600 | D34: 3 | E34: R | F34: R
A35: 4.2 | B35: RDTs | C35: =344*60 -> 20,640 | D35: 11 | E35: R | F35: R
A36: 4.3 | B36: Dozers | C36: =336*60 -> 20,160 | D36: 2 | E36: R | F36: R
A37: 4.4 | B37: Graders | C37: =200*60 -> 12,000 | D37: 2 | E37: R | F37: R
A38: 4.5 | B38: Waterbowsers | C38: =184*60 -> 11,040 | D38: 2 | E38: R | F38: R
A39: 4.6 | B39: Dieselbowsers (monthly rate) | C39: 60 months | D39: 1 | E39: R | F39: R
B40: Subtotal Fleet Rental
B43: Total Rental Cost (Unescalated) - Sum of Subtotals of items 1 + 2+ 3+4 | F43: R

Sheet North Pit Hauling
A1: Bench no | B1: Bench Elevation | C1: Haul Segment | D1: Distance | E1: Gradient (8%) | F1: Total distance
A2: 9 | B2: 372 | C2: Inpit flat | D2: 258 | F2: =D2+D3+D4+D5+D6 -> 3060
C3: Inpit ramp | D3: 619 | E3: 8
C4: Ex-pit 4-way stop 1 | D4: 389
C5: 4-way stop 1 - Waste dump | D5: 1654
C6: Waste dump entance to ramp lift 1 | D6: 140
A7: 10 | B7: 360 | C7: Inpit flat | D7: 547 | F7: =D7+D8+D9+D10+D11 -> 3500
C8: Inpit ramp | D8: 770 | E8: 8
C9: Ex-pit 4-way stop 1 | D9: 389
C10: 4-way stop 1 - Waste dump | D10: 1654
C11: Waste dump entance to ramp lift no | D11: 140
A12: 10 | B12: 360 | C12: Inpit flat | D12: 547
C13: Inpit ramp | D13: 770 | E13: 8 | M13: Lift | N13: Crest Elevation | O13: Ramp segment | P13: Gradient | Q13: Centroid | R13: Sum of TONNES | S13: Sum of VOLUME
C14: Ex-pit 4-way stop 1 | D14: 389 | M14: 1 | N14: 432 | O14: 150 | P14: 8% | Q14: 357 | R14: 5,985,327 | S14: 1,870,415
C15: 4-way stop 1 - Waste dump | D15: 1654 | M15: 2 | N15: 444 | O15: 300 | P15: 8% | Q15: 458 | R15: 10,150,137 | S15: 3,171,918
C16: Waste dump entance to ramp lift | D16: 150 | M16: 3 | N16: 456 | O16: 450 | P16: 8% | Q16: 508 | R16: 10,950,056 | S16: 3,421,893
C17: ramp lift to centroid | D17: 357 | M17: 4 | N17: 468 | O17: 600 | P17: 8% | Q17: 450 | R17: 8,978,233 | S17: 2,805,698
A18: 11 | B18: 348 | C18: Inpit flat | D18: 663 | F18: =SUM(D18:D23) -> 4,153 | M18: 5 | N18: 480 | O18: =O17+O14 -> 750 | P18: 8% | Q18: 339 | R18: 6,802,171 | S18: 2,125,678
C19: Inpit ramp | D19: 940 | E19: 8 | M19: Grand Total | R19: =SUM(R14:R18) -> 42,865,923 | S19: =SUM(S14:S18) -> 13,395,601
C20: Ex-pit 4-way stop 1 | D20: 389
C21: 4-way stop 1 - Waste dump | D21: 1654
C22: Waste dump entance to ramp lift | D22: 150
C23: ramp lift to centroid | D23: 357
A24: 12 | B24: 336 | C24: Inpit flat | D24: 697 | F24: =D24+D25+D26+D27+D28+D29 -> 4,338
C25: Inpit ramp | D25: 1091 | E25: 8
C26: Ex-pit 4-way stop 1 | D26: 389
C27: 4-way stop 1 - Waste dump | D27: 1654
C28: Waste dump entance to ramp lift | D28: 150 | E28: 8
C29: ramp lift to centroid | D29: 357
A30: 13 | B30: 336 | C30: Inpit flat | D30: 558 | F30: =D30+D31+D32+D33+D34+D35 -> 3,694
C31: Inpit ramp | D31: 1169 | E31: 8
C32: Ex-pit 4-way stop 2 | D32: 638
C33: 4-way stop 2 - Waste dump | D33: 822
C34: Waste dump entance to ramp lift | D34: 150 | E34: 8
C35: ramp lift to centroid | D35: 357
A36: 14 | B36: 309 | C36: Inpit flat | D36: 486 | F36: =D36+D37+D38+D39+D40+D41 -> 4,061
C37: Inpit ramp | D37: =D31+188 -> 1357 | E37: 8
C38: Ex-pit 4-way stop 2 | D38: 638
C39: 4-way stop 2 - Waste dump | D39: 822
C40: Waste dump entance to ramp lift | D40: 300 | E40: 8
C41: ramp lift to centroid | D41: 458
A42: 15 | B42: 297 | C42: Inpit flat | D42: 417 | F42: =D42+D43+D44+D45+D46+D47 -> 4,142
C43: Inpit ramp | D43: =D37+150 -> 1507 | E43: 8
C44: Ex-pit 4-way stop 2 | D44: 638
C45: 4-way stop 2 - Waste dump | D45: 822
C46: Waste dump entance to ramp lift | D46: 300 | E46: 8
C47: ramp lift to centroid | D47: 458
A48: 16 | B48: 282 | C48: Inpit flat | D48: 341 | F48: =D48+D49+D50+D51+D52+D53 -> 4,216
C49: Inpit ramp | D49: =D43+150 -> 1657 | E49: 8
C50: Ex-pit 4-way Stop 2 | D50: 638
C51: 4-way Stop 2 - Waste dump | D51: 822
C52: Waste dump entance to ramp lift | D52: 300 | E52: 8
C53: ramp lift to centroid | D53: 458
A54: 17 | B54: 267 | C54: Inpit flat | D54: 339 | F54: =D54+D55+D56+D57+D58+D59 -> 4,364
C55: Inpit ramp | D55: =D49+150 -> 1807 | E55: 8
C56: Ex-pit 4-way Stop 2 | D56: 638
C57: 4-way Stop 2 - Waste dump | D57: 822
C58: Waste dump entance to ramp lift | D58: 300 | E58: 8
C59: ramp lift to centroid | D59: 458
A60: 18 | B60: 255 | C60: Inpit flat | D60: 366 | F60: =D60+D61+D62+D63+D64+D65 -> 4,541
C61: Inpit ramp | D61: =D55+150 -> 1957 | E61: 8
C62: Ex-pit 4-way Stop 2 | D62: 638
C63: 4-way Stop 2 - Waste dump | D63: 822
C64: Waste dump entance to ramp lift | D64: 300 | E64: 8
C65: ramp lift to centroid | D65: 458
A66: 19 | B66: 243 | C66: Inpit flat | D66: 403 | F66: =D66+D67+D68+D69+D70+D71 -> 4,728
C67: Inpit ramp | D67: =D61+150 -> 2107 | E67: 8
C68: Ex-pit 4-way Stop 2 | D68: 638
C69: 4-way Stop 2 - Waste dump | D69: 822
C70: Waste dump entance to ramp lift | D70: 300
C71: ramp lift to centroid | D71: 458
A72: 20 | B72: 231 | C72: Inpit flat | D72: 453 | F72: =D72+D73+D74+D75+D76+D77 -> 5,128
C73: Inpit ramp | D73: =D67+150 -> 2257 | E73: 8
C74: Ex-pit 4-way Stop 2 | D74: 638
C75: 4-way Stop 2 - Waste dump | D75: 822
C76: Waste dump entance to ramp lift | D76: 450
C77: ramp lift to centroid | D77: 508
A78: 21 | B78: 219 | C78: Inpit flat | D78: 265 | F78: =D78+D79+D80+D81+D82+D83 -> 5,090
C79: Inpit ramp | D79: =D73+150 -> 2407 | E79: 8
C80: Ex-pit 4-way Stop 2 | D80: 638
C81: 4-way Stop 2 - Waste dump | D81: 822
C82: Waste dump entance to ramp lift | D82: 450 | E82: 8
C83: ramp lift to centroid | D83: 508
A84: 22 | B84: 219 | C84: Inpit flat | D84: 517 | F84: =D84+D85+D86+D87+D88+D89 -> 5,492
C85: Inpit ramp | D85: =D79+150 -> 2557 | E85: 8
C86: Ex-pit 4-way Stop 2 | D86: 638
C87: 4-way Stop 2 - Waste dump | D87: 822
C88: Waste dump entance to ramp lift | D88: 450 | E88: 8
C89: ramp lift to centroid | D89: 508
A90: 23 | B90: 219 | C90: Inpit flat | D90: 515 | F90: =D90+D91+D92+D93+D94+D95 -> 5,640
C91: Inpit ramp | D91: =D85+150 -> 2707 | E91: 8
C92: Ex-pit 4-way Stop 2 | D92: 638
C93: 4-way Stop 2 - Waste dump | D93: 822
C94: Waste dump entance to ramp lift | D94: 450 | E94: 8
C95: ramp lift to centroid | D95: 508
A97: Ore
A98: Bench no. | B98: Bench | C98: Haul segment | D98: Distance (m) | E98: Gradient (%) | F98: Total distance (m)
B99: elevation
C100: Inpit flat | D100: 258 | E100: 0
C101: Inpit ramp | D101: 619 | E101: 8
A102: 9 | B102: 372 | C102: Ex-pit 4-way stop 1 | D102: 389 | E102: 0 | F102: 1.678
C103: 4-way stop 1 - East crusher | D103: 412 | E103: 3.79
C104: Inpit flat | D104: 547 | E104: 0
C105: Inpit ramp | D105: 770 | E105: 8
A106: 10 | B106: 360 | C106: Ex-pit 4-way stop 1 | D106: 389 | E106: 0 | F106: 1.822
C107: 4-way stop 1 - East crusher | D107: 412 | E107: 3.79
C108: Inpit flat | D108: 663 | E108: 0
C109: Inpit ramp | D109: 940 | E109: 8
A110: 11 | B110: 348 | C110: Ex-pit 4-way stop 1 | D110: 389 | E110: 0 | F110: 2.075
C111: 4-way stop 1 - East crusher | D111: 412 | E111: 3.79
C112: Inpit flat | D112: 697 | E112: 0
C113: Inpit ramp | D113: 1091 | E113: 8
A114: 12 | B114: 336 | C114: Ex-pit 4-way stop 1 | D114: 389 | E114: 0 | F114: =SUM(D112:D115) -> 2589
C115: 4-way stop 1 - East crusher | D115: 412 | E115: Z
C116: Inpit flat | D116: 558 | E116: 0 | O116: =150*70*12*3.2 -> 403200
C117: Inpit ramp | D117: 1258 | E117: 8
A118: 13 | B118: 324 | C118: Ex-pit 4-way stop 1 | D118: 389 | E118: 0 | F118: =SUM(D116:D119) -> 2617
C119: 4-way stop 1 - East crusher | D119: 412 | E119: 3.79
C120: Inpit flat | D120: 486 | E120: 0
C121: Inpit ramp | D121: 1621 | E121: 8
A122: 14 | B122: 309 | C122: Ex-pit 4-way stop 1 | D122: 389 | E122: 0 | F122: =SUM(D120:D123) -> 2908
C123: 4-way stop 1 - East crusher | D123: 412 | E123: 3.79
C124: Inpit flat | D124: 417 | E124: 0
C125: Inpit ramp | D125: 1771 | E125: 8
A126: 15 | B126: 297 | C126: Ex-pit 4-way stop 1 | D126: 389 | E126: 0 | F126: =SUM(D124:D127) -> 2989
C127: 4-way stop 1 - East crusher | D127: 412 | E127: 3.79
C128: Inpit flat | D128: 341 | E128: 0
C129: Inpit ramp | D129: 1963 | E129: 8
A130: 16 | B130: 282 | C130: Ex-pit 4-way stop 1 | D130: 389 | E130: 0 | F130: =SUM(D128:D131) -> 3105
C131: 4-way stop 1 - East crusher | D131: 412 | E131: 3.79
C132: Inpit flat | D132: 339 | E132: 0
C133: Inpit ramp | D133: 2152 | E133: 8
A134: 17 | B134: 267 | C134: Ex-pit 4-way stop 1 | D134: 389 | E134: 0 | F134: =SUM(D132:D135) -> 3292
C135: 4-way stop 1 - East crusher | D135: 412 | E135: 3.79
C136: Inpit flat | D136: 366 | E136: 0
C137: Inpit ramp | D137: 2309 | E137: 8
A138: 18 | B138: 255 | C138: Ex-pit 4-way stop 1 | D138: 389 | E138: 0 | F138: =SUM(D136:D139) -> 3476
C139: 4-way stop 1 - East crusher | D139: 412 | E139: 3.79
C140: Inpit flat | D140: 403 | E140: 0
C141: Inpit ramp | D141: 2457 | E141: 8
A142: 19 | B142: 243 | C142: Ex-pit 4-way stop 1 | D142: 389 | E142: 0 | F142: =SUM(D140:D143) -> 3661
C143: 4-way stop 1 - East crusher | D143: 412 | E143: 3.79
C144: Inpit flat | D144: 453 | E144: 0
C145: Inpit ramp | D145: 2621 | E145: 8
A146: 20 | B146: 231 | C146: Ex-pit 4-way stop 1 | D146: 389 | E146: 0 | F146: =SUM(D144:D147) -> 3875
C147: 4-way stop 1 - East crusher | D147: 412 | E147: 3.79
C148: Inpit flat | D148: 481 | E148: 0
C149: Inpit ramp | D149: 2763 | E149: 8
A150: 21 | B150: 219 | C150: Ex-pit 4-way stop 1 | D150: 389 | E150: 0 | F150: =SUM(D148:D151) -> 4045
C151: 4-way stop 1 - East crusher | D151: 412 | E151: 3.79
C152: Inpit flat | D152: 517 | E152: 0
C153: Inpit ramp | D153: 2919 | E153: 8
A154: 22 | B154: 207 | C154: Ex-pit 4-way stop 1 | D154: 389 | E154: 0 | F154: =SUM(D152:D155) -> 4237
C155: 4-way stop 1 - East crusher | D155: 412 | E155: 3.79
C156: Inpit flat | D156: 515 | E156: 0
C157: Inpit ramp | D157: 3063 | E157: 8
A158: 23 | B158: 195 | C158: Ex-pit 4-way stop 1 | D158: 389 | E158: 0 | F158: =SUM(D156:D159) -> 4379
C159: 4-way stop 1 - East crusher | D159: 412 | E159: 3.79
C165: Ramp Length | D165: = | E165: Bench Height
E166: Gradient
C167: Bench Height | D167: 12
C168: no of benches | D168: 1
C169: Gradient | D169: =8/100 -> 0.08
E170: =D167*D168/D169 -> 150

Sheet scoring sheet - 200t (hidden)
A1: Item no. | B1: Criteria | C1: Evaluation Criteria Points Allocation | D1: Notes
A2: Technical Criteria
A3: 1 | B3: Provide 5 years of previous /relevant experience of providing loading & hauling services. | D3: Provide reference letters of projects, with project values and duration.
B4: Scoring | C4: 10
B5: < 1 year 25%
B6: ≥1 < 3 years 50%
B7: ≥3 < 5 years 75%
B8: ≥ 5 years 100%
A9: 2 | B9: Bidder should preferably have previous experience with volumes exceeding 10 million tonnes (Mt) per annum and prior experieice with opencast mining services: | D9: Provide reference letters in clients letterhead showing tonnages mined | K9: =C4+C11+C18+C22+C26+C34+C40 -> 100
B11: Scoring | C11: 10
B12: < 1 Mt 0%
B13: ≥1 Mt < 5 Mt 50%
B14: ≥5 Mt < 10 Mt 75%
B15: ≥ 10 Mt 100%
A16: 3 | B16: Team - Capability to provide qualified Site Manager & Mine Surveyor familiar with opencast mining environment | D16: Bidders must submit the following CVs: Site Manager - min. 5 years experience with opencast blasting ticket & Mine Surveyor - min. 5 years experience with Mine Survey Certificate of Competence
B18: Scoring | C18: 10
B19: No CVs submitted 0%
B20: Both CVs submitted 100%
A21: 4 | B21: Bidder Site Equipment List | D21: Minimum Requirements: Backhoe Excavator ≥ 300t operating weight Rigid Body Dump Truck ( 200t payload) Track Dozer ≥ 70t operating weight Motor Grader - min. 3.7m blade width Water Bowser - min. capacity 27000L Diesel Bowser - min. capacity 18000L Bidder to provide proof of ownership of the equipment or proof of a credit facility or written undertaking from a rental agency that will lease the equipment to the bidder for a period of 5 years. Proof of ownership required in the form of vehicle license registration to be submitted. Proof of credit / lease facility in the form of confirmation letter from the equipment owner to be submitted for verification purposes.
B22: Scoring | C22: 25
B23: Bidder provides no indication of ownership or leasing arrangement on the equipments to be provided = 0%
B24: Bidder provides indication to lease some of the minimum required equipments = 50%
B25: Bidder owns all of minimum required equipments = 100%
A26: 5 | B26: Age of Bidders' Equipment | C26: 25 | D26: Bidder must provide proof of when equipment was purchased
B27: Scoring
B28: Age of Equipment
B29: ≥ 3 years = 0%
B30: ≥ 2 years & < 3 years = 50%
B31: < 2 years = 100%
A32: 6 | B32: The bidder must provide a Maintenance Plan to effectively maintain the Equipments and minimise the impact and risk to the Company in the event of machinery/equipment breakdown:
B34: Scoring | C34: 10
B35: No Maintenance Plan submitted = 0%
B36: Basic Maintenance Plan submitted =50%
B37: Detailed Maintenance Plan submitted =100%
A38: 7 | B38: Minimum Safety & Compliance Training | D38: Bidder must provide proof or commitment of safety & compliance training offered or to be offered to employees
B40: Scoring | C40: 10
B41: No Safety & Compliance Training Plan submitted = 0%
B42: Safety & Compliance Training Plan submitted = 100%
